fUST/lending_fUST_20260420
["ID","MTS","AMOUNT","RATE_DAILY","PERIOD"]
[420881143,1776695452737,-500.0,0.00014794,2]
[420881144,1776695452747,-2381.19,0.00014794,2]
[420881145,1776695452756,-2027.58,0.00014794,2]
[420881146,1776695452766,-11841.55,0.00014794,2]
[420881147,1776695452775,-670.87,0.00014794,2]
[420881148,1776695452785,-16882.41454777,0.00014794,2]
[420881149,1776695453010,-1268.88875421,0.00014246,2]
[420881150,1776695453023,-5125.94060494,0.00014246,2]
[420881151,1776695453048,-250.5264,0.00014246,2]
[420881152,1776695453065,-608.24692022,0.00014246,2]
[420881153,1776695454067,-163.5879028,0.00014246,2]
[420881154,1776695454087,-958.37903967,0.00014246,2]
[420881163,1776696249859,-1098.55611338,9.801e-05,2]
[420881164,1776696249885,-150.0,9.9e-05,2]
[420881165,1776696249909,-300.0,9.999e-05,2]
[420881166,1776696249931,-31437.5475817,0.0001,2]
[420881167,1776696249953,-7013.89630492,0.0001,2]
[420881168,1776696299649,-272.31197417,0.0001,2]
[420881169,1776696299674,-722.06324046,0.0001,2]
[420881170,1776696299700,-300.0,0.00010199,2]
[420881171,1776696299728,-300.0,0.00010199,2]
[420881172,1776696299755,-300.0,0.00010199,2]
[420881173,1776696299784,-300.0,0.00010199,2]
[420881174,1776696299810,-300.0,0.00010199,2]
[420881175,1776696299837,-300.0,0.00010199,2]
[420881176,1776696299863,-300.0,0.00010199,2]
[420881177,1776696299889,-300.0,0.00010199,2]
[420881178,1776696299915,-300.0,0.00010199,2]
[420881179,1776696299942,-300.0,0.00010199,2]
[420881180,1776696299968,-300.0,0.00010199,2]
[420881181,1776696299993,-300.0,0.00010199,2]
[420881182,1776696300019,-300.0,0.00010199,2]
[420881183,1776696300047,-300.0,0.00010199,2]
[420881184,1776696300075,-300.0,0.00010199,2]
[420881185,1776696300104,-600.0,0.00010402,2]
[420881186,1776696300128,-1052.62478537,0.00010959,2]
[420881213,1776696638826,-300.0,9.999e-05,2]
[420881214,1776696638836,-2284.246,0.0001,2]
[420881215,1776696638987,-1943.09422931,0.0001,2]
[420881216,1776696639000,-1398.88962671,0.0001,2]
[420881217,1776696639012,-2395.95162183,0.0001,2]
[420881218,1776696639148,-31978.43308658,0.0001,2]
[420881219,1776696639158,-300.0,0.00010199,2]
[420881220,1776696639169,-300.0,0.00010199,2]
[420881222,1776696639179,-300.0,0.00010199,2]
[420881224,1776696639192,-300.0,0.00010199,2]
[420881225,1776696639202,-300.0,0.00010199,2]
[420881226,1776696639212,-300.0,0.00010199,2]
[420881227,1776696639223,-300.0,0.00010199,2]
[420881228,1776696639234,-300.0,0.00010199,2]
[420881229,1776696639244,-300.0,0.00010199,2]
[420881230,1776696639255,-300.0,0.00010199,2]
[420881231,1776696639266,-300.0,0.00010199,2]
[420881232,1776696639277,-300.0,0.00010199,2]
[420881233,1776696639287,-300.0,0.00010199,2]
[420881234,1776696639297,-300.0,0.00010199,2]
[420881235,1776696639308,-300.0,0.00010199,2]
[420881236,1776696639318,-600.0,0.00010402,2]
[420881237,1776696639328,-4585.36520683,0.00010934,2]
[420881238,1776696639340,-2562.30843157,0.00010934,2]
[420881239,1776696639350,-150.0,0.00010946,2]
[420881240,1776696639360,-500.0,0.00010958,2]
[420881241,1776696639370,-14327.74881463,0.00010959,2]
[420881242,1776696639380,-420.0,0.00010999,2]
[420881243,1776696639390,-720.0,0.00011442,2]
[420881244,1776696639400,-152.0,0.00011655,7]
[420881245,1776696639410,-14102.41270629,0.00012,2]
[420881246,1776696639419,-587.0,0.00012099,2]
[420881247,1776696639429,-234368.6057374,0.00012227,2]
[420881248,1776696639438,-151.0,0.00012321,2]
[420881249,1776696639448,-151.0,0.00012321,2]
[420881250,1776696639457,-151.0,0.00012321,2]
[420881251,1776696639467,-180.1194985,0.00012321,2]
[420881253,1776696639783,-151.0,0.00012321,2]
[420881254,1776696639806,-151.0,0.00012321,2]
[420881255,1776696639826,-151.0,0.00012321,2]
[420881256,1776696639836,-151.0,0.00012321,2]
[420881257,1776696639846,-151.0,0.00012321,2]
[420881258,1776696639855,-151.0,0.00012321,2]
[420881259,1776696639865,-151.0,0.00012321,2]
[420881260,1776696639874,-151.0,0.00012321,2]
[420881261,1776696639883,-151.0,0.00012321,2]
[420881262,1776696639893,-151.0,0.00012321,2]
[420881263,1776696639902,-151.0,0.00012321,2]
[420881264,1776696639911,-151.0,0.00012321,2]
[420881266,1776696639921,-151.0,0.00012321,2]
[420881267,1776696639930,-151.0,0.00012321,2]
[420881268,1776696639940,-151.0,0.00012321,2]
[420881270,1776696639949,-151.0,0.00012321,2]
[420881271,1776696639959,-152.19084931,0.00012321,2]
[420881272,1776696639968,-155.0,0.00012328,2]
[420881273,1776696639978,-21500.64,0.00012329,2]
[420881274,1776696639987,-17917.2,0.00012329,2]
[420881275,1776696639996,-14931.0,0.00012329,2]
[420881276,1776696640005,-12442.5,0.00012329,2]
[420881277,1776696640014,-10368.75,0.00012329,2]
[420881278,1776696640023,-8640.63,0.00012329,2]
[420881279,1776696640033,-7200.52,0.00012329,2]
[420881280,1776696640042,-6000.43,0.00012329,2]
[420881281,1776696640051,-5000.36,0.00012329,2]
[420881282,1776696640060,-4166.97,0.00012329,2]
[420881283,1776696640069,-3472.47,0.00012329,2]
[420881284,1776696640079,-2893.73,0.00012329,2]
[420881285,1776696640088,-2411.44,0.00012329,2]
[420881286,1776696640097,-2009.53,0.00012329,2]
[420881287,1776696640106,-1674.61,0.00012329,2]
[420881288,1776696640115,-1395.51,0.00012329,2]
[420881289,1776696640124,-1162.93,0.00012329,2]
[420881290,1776696640134,-969.1,0.00012329,2]
[420881291,1776696640143,-807.59,0.00012329,2]
[420881292,1776696640152,-672.99,0.00012329,2]
[420881294,1776696640162,-560.82,0.00012329,2]
[420881295,1776696640171,-467.35,0.00012329,2]
[420881296,1776696640181,-389.46,0.00012329,2]
[420881297,1776696640190,-324.55,0.00012329,2]
[420881298,1776696640200,-270.46,0.00012329,2]
[420881300,1776696640209,-225.38,0.00012329,2]
[420881301,1776696640218,-187.82,0.00012329,2]
[420881302,1776696640228,-156.52,0.00012329,2]
[420881303,1776696640237,-782.61,0.00012329,2]
[420881304,1776696640247,-152.0,0.00012331,7]
[420881305,1776696640256,-864.0,0.00012586,2]
[420881306,1776696640265,-151.0,0.000126,2]
[420881307,1776696640275,-151.0,0.000126,2]
[420881308,1776696640284,-151.0,0.000127,2]
[420881309,1776696640293,-151.0,0.000127,2]
[420881310,1776696640302,-151.0,0.000128,2]
[420881311,1776696640312,-151.0,0.000128,2]
[420881312,1776696640321,-277.68680121,0.000129,2]
[420881313,1776696640330,-277.68680117,0.000129,2]
[420881314,1776696640340,-277.68680117,0.000129,2]
[420881315,1776696640348,-250.0,0.0001291,2]
[420881316,1776696640358,-177.0,0.00012946,2]
[420881317,1776696640366,-537.6845,0.00013189,2]
[420881318,1776696640376,-438.44861291,0.00013189,2]
[420881319,1776696640385,-2150.738,0.00013189,2]
[420881320,1776696640394,-324.26757006,0.00013244,2]
[420881321,1776696640403,-823.0,0.00013309,2]
[420881322,1776696640413,-242.424,0.00013495,2]
[420881323,1776696640424,-441.0,0.00013675,2]
[420881324,1776696640434,-500.0,0.00013698,2]
[420881325,1776696640443,-500.0,0.00013698,2]
[420881326,1776696640452,-539.182,0.00013698,2]
[420881327,1776696640462,-610.26,0.00013698,2]
[420881328,1776696640471,-602.11,0.00013698,2]
[420881330,1776696640480,-500.0,0.00013698,2]
[420881331,1776696640489,-500.0,0.00013698,2]
[420881332,1776696640498,-500.0,0.00013698,2]
[420881333,1776696640508,-500.0,0.00013698,2]
[420881334,1776696640517,-500.0,0.00013698,2]
[420881335,1776696640525,-500.0,0.00013698,2]
[420881336,1776696640535,-1000.0,0.00013698,2]
[420881337,1776696640544,-956.57,0.00013698,2]
[420881338,1776696640554,-630.47,0.00013698,2]
[420881339,1776696640563,-500.0,0.00013698,2]
[420881340,1776696640572,-500.0,0.00013698,2]
[420881341,1776696640581,-500.0,0.00013698,2]
[420881342,1776696640590,-397.32512334,0.00013698,2]
[420881343,1776696640600,-532.09,0.00013698,2]
[420881344,1776696640610,-622.23,0.00013698,2]
[420881345,1776696640619,-500.0,0.00013698,2]
[420881346,1776696640629,-500.0,0.00013698,2]
[420881347,1776696640639,-151.0,0.00013698,2]
[420881348,1776696640648,-704.3,0.00013698,2]
[420881349,1776696640657,-690.29,0.00013698,2]
[420881350,1776696640667,-789.51,0.00013698,2]
[420881351,1776696640676,-515.0,0.00013698,2]
[420881352,1776696640687,-832.46,0.00013698,2]
[420881353,1776696640696,-930.35,0.00013698,2]
[420881354,1776696640706,-955.21,0.00013698,2]
[420881355,1776696640715,-726.69,0.00013698,2]
[420881356,1776696640724,-500.0,0.00013698,2]
[420881357,1776696640734,-517.82,0.00013698,2]
[420881358,1776696640743,-500.0,0.00013698,2]
[420881359,1776696640752,-1042.5,0.00013698,2]
[420881360,1776696640762,-500.0,0.00013698,2]
[420881361,1776696640771,-565.17,0.00013698,2]
[420881362,1776696640781,-1002.87,0.00013698,2]
[420881363,1776696640790,-500.0,0.00013698,2]
[420881364,1776696640799,-818.35,0.00013698,2]
[420881365,1776696640809,-500.0,0.00013698,2]
[420881366,1776696640818,-3024.12,0.00013698,2]
[420881367,1776696640827,-866.55,0.00013698,2]
[420881368,1776696640837,-500.0,0.00013698,2]
[420881369,1776696640846,-500.0,0.00013698,2]
[420881370,1776696640855,-500.0,0.00013698,2]
[420881371,1776696640866,-587.08,0.00013698,2]
[420881372,1776696640876,-591.8,0.00013698,2]
[420881373,1776696640885,-500.0,0.00013698,2]
[420881374,1776696640894,-500.0,0.00013698,2]
[420881376,1776696640903,-500.0,0.00013698,2]
[420881378,1776696640913,-543.95,0.00013698,2]
[420881379,1776696640922,-963.63,0.00013698,2]
[420881380,1776696640931,-500.0,0.00013698,2]
[420881381,1776696640941,-500.0,0.00013698,2]
[420881382,1776696640951,-1768.45,0.00013698,2]
[420881383,1776696640960,-500.0,0.00013698,2]
[420881384,1776696640969,-500.0,0.00013698,2]
[420881385,1776696640979,-500.0,0.00013698,2]
[420881386,1776696640988,-500.28848137,0.00013698,2]
[420881387,1776696640998,-822.54,0.00013698,2]
[420881388,1776696641008,-500.0,0.00013698,2]
[420881389,1776696641018,-500.0,0.00013698,2]
[420881390,1776696641027,-500.0,0.00013698,2]
[420881391,1776696641037,-754.0,0.00013698,2]
[420881392,1776696641046,-500.0,0.00013698,2]
[420881393,1776696641055,-500.0,0.00013698,2]
[420881394,1776696641064,-500.0,0.00013698,2]
[420881395,1776696641074,-550.65,0.00013698,2]
[420881396,1776696641083,-500.0,0.00013698,2]
[420881397,1776696641092,-1156.48,0.00013698,2]
[420881398,1776696641102,-500.0,0.00013698,2]
[420881399,1776696641112,-500.0,0.00013698,2]
[420881400,1776696641121,-500.0,0.00013698,2]
[420881401,1776696641130,-1510.15,0.00013698,2]
[420881402,1776696641139,-500.0,0.00013698,2]
[420881403,1776696641148,-1473.14,0.00013698,2]
[420881404,1776696641157,-500.0,0.00013698,2]
[420881405,1776696641167,-1885.11,0.00013698,2]
[420881406,1776696641176,-500.0,0.00013698,2]
[420881407,1776696641186,-609.17,0.00013698,2]
[420881408,1776696641195,-828.28,0.00013698,2]
[420881409,1776696641205,-500.0,0.00013698,2]
[420881410,1776696641213,-500.0,0.00013698,2]
[420881411,1776696641223,-968.9,0.00013698,2]
[420881412,1776696641232,-278.60561993,0.00013698,2]
[420881413,1776696641241,-4271.56,0.00013698,2]
[420881414,1776696641251,-844.7,0.00013698,2]
[420881415,1776696641261,-500.0,0.00013698,2]
[420881416,1776696641270,-7286.0,0.00013698,2]
[420881417,1776696641279,-500.0,0.00013698,2]
[420881418,1776696641288,-852.55,0.00013698,2]
[420881419,1776696641297,-1256.17,0.00013698,2]
[420881420,1776696641308,-500.0,0.00013698,2]
[420881421,1776696641317,-500.0,0.00013698,2]
[420881422,1776696641326,-500.0,0.00013698,2]
[420881423,1776696641336,-637.44228481,0.00013698,2]
[420881424,1776696641345,-3573.36,0.00013698,2]
[420881425,1776696641354,-4539.58,0.00013698,2]
[420881426,1776696641363,-2069.57,0.00013698,2]
[420881427,1776696641372,-6344.31,0.00013698,2]
[420881428,1776696641381,-500.0,0.00013698,2]
[420881429,1776696641391,-830.25,0.00013698,2]
[420881430,1776696641400,-500.0,0.00013698,2]
[420881431,1776696641409,-3326.62,0.00013698,2]
[420881432,1776696641418,-7592.59,0.00013698,2]
[420881433,1776696641427,-676.3,0.00013698,2]
[420881434,1776696641437,-1056.46,0.00013698,2]
[420881435,1776696641446,-644.42,0.00013698,2]
[420881436,1776696641455,-996.3,0.00013698,2]
[420881437,1776696641464,-500.0,0.00013698,2]
[420881438,1776696641473,-11307.08,0.00013698,2]
[420881439,1776696641483,-947.12,0.00013698,2]
[420881440,1776696641492,-1605.17,0.00013698,2]
[420881441,1776696641500,-869.48,0.00013698,2]
[420881442,1776696641509,-685.66,0.00013698,2]
[420881443,1776696641518,-500.0,0.00013698,2]
[420881444,1776696641527,-2903.7,0.00013698,2]
[420881445,1776696641536,-500.0,0.00013698,2]
[420881446,1776696641546,-500.0,0.00013698,2]
[420881447,1776696641556,-500.0,0.00013698,2]
[420881448,1776696641565,-500.0,0.00013698,2]
[420881449,1776696641574,-500.0,0.00013698,2]
[420881450,1776696641583,-621.27691081,0.00013698,2]
[420881451,1776696641591,-500.0,0.00013698,2]
[420881452,1776696641600,-500.0,0.00013698,2]
[420881453,1776696641610,-613.26,0.00013698,2]
[420881454,1776696641619,-500.0,0.00013698,2]
[420881455,1776696641628,-1096.81,0.00013698,2]
[420881456,1776696641638,-500.0,0.00013698,2]
[420881457,1776696641647,-1197.32,0.00013698,2]
[420881458,1776696641656,-2560.25,0.00013698,2]
[420881459,1776696641665,-500.0,0.00013698,2]
[420881460,1776696641674,-886.39,0.00013698,2]
[420881461,1776696641684,-678.11,0.00013698,2]
[420881462,1776696641693,-500.0,0.00013698,2]
[420881463,1776696641702,-500.0,0.00013698,2]
[420881464,1776696641711,-500.0,0.00013698,2]
[420881465,1776696641721,-623.03,0.00013698,2]
[420881466,1776696641730,-968.78,0.00013698,2]
[420881467,1776696641740,-500.0,0.00013698,2]
[420881468,1776696641750,-836.22,0.00013698,2]
[420881469,1776696641759,-500.0,0.00013698,2]
[420881470,1776696641768,-8847.38,0.00013698,2]
[420881471,1776696641777,-500.0,0.00013698,2]
[420881472,1776696641787,-547.13,0.00013698,2]
[420881473,1776696641796,-3313.74,0.00013698,2]
[420881474,1776696641806,-1371.83,0.00013698,2]
[420881475,1776696641816,-500.0,0.00013698,2]
[420881476,1776696641825,-5074.56,0.00013698,2]
[420881477,1776696641834,-580.21359858,0.00013698,2]
[420881478,1776696641843,-1505.97,0.00013698,2]
[420881479,1776696641853,-500.0,0.00013698,2]
[420881480,1776696641863,-1661.78,0.00013698,2]
[420881481,1776696641872,-627.54,0.00013698,2]
[420881482,1776696641882,-1009.93,0.00013698,2]
[420881483,1776696641894,-500.0,0.00013698,2]
[420881484,1776696641903,-531.0,0.00013698,2]
[420881485,1776696641912,-500.0,0.00013698,2]
[420881486,1776696641922,-539.83,0.00013698,2]
[420881487,1776696641932,-743.11,0.00013698,2]
[420881488,1776696641942,-2073.43,0.00013698,2]
[420881489,1776696641951,-554.89,0.00013698,2]
[420881490,1776696641960,-582.62,0.00013698,2]
[420881491,1776696641970,-500.0,0.00013698,2]
[420881492,1776696641979,-2908.99,0.00013698,2]
[420881493,1776696641989,-500.0,0.00013698,2]
[420881494,1776696641998,-500.0,0.00013698,2]
[420881495,1776696642008,-701.99,0.00013698,2]
[420881496,1776696642018,-1141.9,0.00013698,2]
[420881497,1776696642028,-1249.46,0.00013698,2]
[420881498,1776696642037,-500.0,0.00013698,2]
[420881499,1776696642047,-707.82,0.00013698,2]
[420881500,1776696642057,-500.0,0.00013698,2]
[420881501,1776696642066,-7036.91,0.00013698,2]
[420881502,1776696642076,-2377.27,0.00013698,2]
[420881503,1776696642085,-875.64,0.00013698,2]
[420881504,1776696642094,-500.0,0.00013698,2]
[420881505,1776696642103,-6048.3,0.00013698,2]
[420881506,1776696642112,-500.0,0.00013698,2]
[420881507,1776696642122,-1882.47,0.00013698,2]
[420881508,1776696642131,-500.0,0.00013698,2]
[420881509,1776696642140,-3034.32,0.00013698,2]
[420881510,1776696642149,-500.0,0.00013698,2]
[420881511,1776696642159,-818.65,0.00013698,2]
[420881512,1776696642168,-699.34,0.00013698,2]
[420881513,1776696642177,-3464.74,0.00013698,2]
[420881514,1776696642186,-4871.73,0.00013698,2]
[420881515,1776696642196,-500.0,0.00013698,2]
[420881516,1776696642205,-500.0,0.00013698,2]
[420881517,1776696642214,-6287.28,0.00013698,2]
[420881518,1776696642224,-500.0,0.00013698,2]
[420881519,1776696642233,-890.69,0.00013698,2]
[420881520,1776696642241,-500.0,0.00013698,2]
[420881521,1776696642251,-500.0,0.00013698,2]
[420881522,1776696642260,-500.0,0.00013698,2]
[420881523,1776696642269,-5009.47,0.00013698,2]
[420881524,1776696642278,-500.0,0.00013698,2]
[420881525,1776696642287,-15915.66,0.00013698,2]
[420881526,1776696642296,-4884.2,0.00013698,2]
[420881527,1776696642306,-182.93708514,0.00013698,2]
[420881528,1776696642315,-500.0,0.00013698,2]
[420881529,1776696642324,-10006.4,0.00013698,2]
[420881530,1776696642333,-4637.64,0.00013698,2]
[420881531,1776696642343,-500.0,0.00013698,2]
[420881532,1776696642353,-500.0,0.00013698,2]
[420881533,1776696642363,-730.92,0.00013698,2]
[420881534,1776696642373,-1632.29,0.00013698,2]
[420881535,1776696642382,-1363.78,0.00013698,2]
[420881536,1776696642392,-500.0,0.00013698,2]
[420881537,1776696642401,-3657.71,0.00013698,2]
[420881538,1776696642411,-2485.21,0.00013698,2]
[420881539,1776696642420,-1206.45,0.00013698,2]
[420881540,1776696642429,-15895.85,0.00013698,2]
[420881541,1776696642438,-500.0,0.00013698,2]
[420881542,1776696642448,-500.0,0.00013698,2]
[420881543,1776696642457,-1632.78,0.00013698,2]
[420881544,1776696642466,-500.0,0.00013698,2]
[420881545,1776696642476,-500.0,0.00013698,2]
[420881546,1776696642485,-349.92757276,0.00013698,2]
[420881547,1776696642494,-11810.45,0.00013698,2]
[420881548,1776696642503,-9374.56,0.00013698,2]
[420881549,1776696642513,-500.0,0.00013698,2]
[420881550,1776696642522,-1190.0,0.00013699,2]
[420881551,1776696642531,-1000.0,0.00013699,2]
[420881552,1776696642541,-2230.315306,0.00013737,2]
[420881553,1776696642550,-1000.0,0.00013845,2]
[420881554,1776696642559,-194.0,0.000139,2]
[420881555,1776696642568,-223.64435308,0.00013954,2]
[420881556,1776696642578,-500.0,0.00013972,2]
[420881557,1776696642587,-500.0,0.00013972,2]
[420881558,1776696642597,-539.182,0.00013972,2]
[420881559,1776696642606,-610.26,0.00013972,2]
[420881560,1776696642616,-602.11,0.00013972,2]
[420881561,1776696642625,-500.0,0.00013972,2]
[420881562,1776696642634,-167.91984287,0.00013972,2]
[420881563,1776696642644,-500.0,0.00013972,2]
[420881564,1776696642654,-582.38868012,0.00013972,2]
[420881565,1776696642663,-404.54519459,0.00013972,2]
[420881566,1776696642672,-500.0,0.00013972,2]
[420881567,1776696642682,-1000.0,0.00013972,2]
[420881568,1776696642691,-956.57,0.00013972,2]
[420881569,1776696642700,-630.47,0.00013972,2]
[420881570,1776696642710,-500.0,0.00013972,2]
[420881571,1776696642719,-500.0,0.00013972,2]
[420881572,1776696642728,-500.0,0.00013972,2]
[420881573,1776696642738,-532.09,0.00013972,2]
[420881574,1776696642747,-622.23,0.00013972,2]
[420881575,1776696642756,-500.0,0.00013972,2]
[420881576,1776696642766,-500.0,0.00013972,2]
[420881577,1776696642775,-151.0,0.00013972,2]
[420881578,1776696642785,-151.317285,0.00013972,2]
[420881579,1776696642795,-704.3,0.00013972,2]
[420881580,1776696642804,-690.29,0.00013972,2]
[420881581,1776696642813,-789.51,0.00013972,2]
[420881582,1776696642823,-515.0,0.00013972,2]
[420881583,1776696642832,-832.46,0.00013972,2]
[420881584,1776696642843,-930.35,0.00013972,2]
[420881585,1776696642853,-955.21,0.00013972,2]
[420881586,1776696642862,-726.69,0.00013972,2]
[420881587,1776696642871,-566.41702055,0.00013972,2]
[420881588,1776696642881,-517.82,0.00013972,2]
[420881589,1776696642890,-500.0,0.00013972,2]
[420881590,1776696642900,-1042.5,0.00013972,2]
[420881591,1776696642909,-500.0,0.00013972,2]
[420881592,1776696642919,-565.17,0.00013972,2]
[420881593,1776696642928,-1002.87,0.00013972,2]
[420881594,1776696642938,-500.0,0.00013972,2]
[420881595,1776696642948,-818.35,0.00013972,2]
[420881596,1776696642958,-500.0,0.00013972,2]
[420881597,1776696642968,-3024.12,0.00013972,2]
[420881598,1776696642977,-866.55,0.00013972,2]
[420881600,1776696642987,-500.0,0.00013972,2]
[420881602,1776696642997,-500.0,0.00013972,2]
[420881603,1776696643007,-500.0,0.00013972,2]
[420881605,1776696643017,-587.08,0.00013972,2]
[420881607,1776696643027,-591.8,0.00013972,2]
[420881609,1776696643036,-500.0,0.00013972,2]
[420881610,1776696643047,-500.0,0.00013972,2]
[420881612,1776696643057,-500.0,0.00013972,2]
[420881614,1776696643067,-543.95,0.00013972,2]
[420881616,1776696643076,-963.63,0.00013972,2]
[420881618,1776696643086,-500.0,0.00013972,2]
[420881621,1776696643095,-1768.45,0.00013972,2]
[420881623,1776696643105,-500.0,0.00013972,2]
[420881626,1776696643115,-822.54,0.00013972,2]
[420881629,1776696643126,-500.0,0.00013972,2]
[420881632,1776696643136,-500.0,0.00013972,2]
[420881636,1776696643145,-500.0,0.00013972,2]
[420881639,1776696643155,-754.0,0.00013972,2]
[420881641,1776696643164,-500.0,0.00013972,2]
[420881642,1776696643173,-500.0,0.00013972,2]
[420881643,1776696643183,-500.0,0.00013972,2]
[420881652,1776696643341,-550.65,0.00013972,2]
[420881653,1776696643350,-500.0,0.00013972,2]
[420881654,1776696643361,-1156.48,0.00013972,2]
[420881655,1776696643370,-500.0,0.00013972,2]
[420881656,1776696643380,-500.0,0.00013972,2]
[420881657,1776696643390,-1510.15,0.00013972,2]
[420881658,1776696643399,-500.0,0.00013972,2]
[420881659,1776696643408,-1473.14,0.00013972,2]
[420881660,1776696643418,-500.0,0.00013972,2]
[420881661,1776696643429,-1885.11,0.00013972,2]
[420881662,1776696643441,-500.0,0.00013972,2]
[420881663,1776696643451,-609.17,0.00013972,2]
[420881664,1776696643461,-828.28,0.00013972,2]
[420881665,1776696643470,-505.76578378,0.00013972,2]
[420881666,1776696643480,-500.0,0.00013972,2]
[420881667,1776696643490,-968.9,0.00013972,2]
[420881668,1776696643499,-4271.56,0.00013972,2]
[420881669,1776696643508,-844.7,0.00013972,2]
[420881670,1776696643518,-444.99342435,0.00013972,2]
[420881671,1776696643527,-7286.0,0.00013972,2]
[420881672,1776696643536,-500.0,0.00013972,2]
[420881673,1776696643546,-852.55,0.00013972,2]
[420881674,1776696643555,-1256.17,0.00013972,2]
[420881675,1776696643565,-500.0,0.00013972,2]
[420881676,1776696643575,-500.0,0.00013972,2]
[420881678,1776696643584,-500.0,0.00013972,2]
[420881680,1776696643593,-3573.36,0.00013972,2]
[420881681,1776696643603,-4539.58,0.00013972,2]
[420881683,1776696643613,-2069.57,0.00013972,2]
[420881684,1776696643623,-6344.31,0.00013972,2]
[420881685,1776696643633,-500.0,0.00013972,2]
[420881686,1776696643642,-830.25,0.00013972,2]
[420881687,1776696643651,-500.0,0.00013972,2]
[420881688,1776696643661,-3326.62,0.00013972,2]
[420881689,1776696643671,-7592.59,0.00013972,2]
[420881690,1776696643680,-676.3,0.00013972,2]
[420881691,1776696643691,-1056.46,0.00013972,2]
[420881692,1776696643700,-644.42,0.00013972,2]
[420881693,1776696643710,-996.3,0.00013972,2]
[420881694,1776696643720,-500.0,0.00013972,2]
[420881695,1776696643729,-11307.08,0.00013972,2]
[420881696,1776696643738,-947.12,0.00013972,2]
[420881697,1776696643748,-1605.17,0.00013972,2]
[420881698,1776696643757,-869.48,0.00013972,2]
[420881699,1776696643767,-685.66,0.00013972,2]
[420881700,1776696643776,-364.13967979,0.00013972,2]
[420881701,1776696643785,-2903.7,0.00013972,2]
[420881702,1776696643795,-500.0,0.00013972,2]
[420881703,1776696643804,-182.30224611,0.00013972,2]
[420881704,1776696643814,-500.0,0.00013972,2]
[420881705,1776696643823,-596.98002292,0.00013972,2]
[420881706,1776696643833,-500.0,0.00013972,2]
[420881707,1776696643843,-500.0,0.00013972,2]
[420881708,1776696643852,-500.0,0.00013972,2]
[420881709,1776696643862,-613.26,0.00013972,2]
[420881710,1776696643871,-500.0,0.00013972,2]
[420881711,1776696643881,-1096.81,0.00013972,2]
[420881713,1776696643890,-500.0,0.00013972,2]
[420881715,1776696643901,-1197.32,0.00013972,2]
[420881717,1776696643911,-2560.25,0.00013972,2]
[420881719,1776696643920,-500.0,0.00013972,2]
[420881721,1776696643930,-886.39,0.00013972,2]
[420881723,1776696643939,-678.11,0.00013972,2]
[420881725,1776696643949,-500.0,0.00013972,2]
[420881727,1776696643958,-500.0,0.00013972,2]
[420881728,1776696643968,-225.43631671,0.00013972,2]
[420881729,1776696643978,-623.03,0.00013972,2]